bitfinex/quotes_BTCUSD_20241014
["timestamp","ask_amount","ask_price","bid_price","bid_amount"]
[1728896581432,0.166995,64518.0,64517.0,0.000822]
[1728896581674,0.40781901,64518.0,64517.0,0.000822]
[1728896582125,0.49941901,64518.0,64517.0,0.000822]
[1728896583043,0.53041901,64518.0,64517.0,0.001822]
[1728896584276,0.53041901,64518.0,64517.0,0.000822]
[1728896584277,0.52741901,64518.0,64517.0,0.000822]
[1728896584528,0.52741901,64518.0,64517.0,0.001822]
[1728896584773,0.53841901,64518.0,64517.0,0.001822]
[1728896585028,0.52741901,64518.0,64517.0,0.000822]
[1728896585273,0.54141901,64518.0,64517.0,0.001822]
[1728896585517,0.52741901,64518.0,64517.0,0.000822]
[1728896586013,0.54141901,64518.0,64517.0,0.001822]
[1728896586281,0.52741901,64518.0,64517.0,0.001822]
[1728896586730,0.52741901,64518.0,64517.0,0.000822]
[1728896586951,0.62741901,64518.0,64517.0,0.000822]
[1728896587164,0.62741901,64518.0,64517.0,0.001822]
[1728896587592,0.62741901,64518.0,64517.0,0.000822]
[1728896587812,0.62741901,64518.0,64517.0,0.001822]
[1728896588026,0.63741901,64518.0,64517.0,0.002822]
[1728896588478,0.62741901,64518.0,64517.0,0.001822]
[1728896588713,0.63741901,64518.0,64517.0,0.002822]
[1728896589436,0.62741901,64518.0,64517.0,0.000822]
[1728896589872,0.63641901,64518.0,64517.0,0.002822]
[1728896590309,0.63641901,64518.0,64517.0,0.001822]
[1728896590822,0.63641901,64518.0,64517.0,0.002822]
[1728896591291,0.62741901,64518.0,64517.0,0.001822]
[1728896591544,0.63741901,64518.0,64517.0,0.002822]
[1728896592437,0.62741901,64518.0,64517.0,0.002822]
[1728896596120,0.62641901,64518.0,64517.0,0.002822]
[1728896596347,0.62741901,64518.0,64517.0,0.002822]
[1728896596781,0.67599186,64518.0,64517.0,0.002822]
[1728896597661,0.72447053,64518.0,64517.0,0.002822]
[1728896597880,0.66599186,64518.0,64517.0,0.001822]
[1728896598089,0.67599186,64518.0,64517.0,0.002822]
[1728896598589,0.66599186,64518.0,64517.0,0.000822]
[1728896598821,0.67599186,64518.0,64517.0,0.001822]
[1728896599040,0.68099186,64518.0,64517.0,0.002822]
[1728896599496,0.67599186,64518.0,64517.0,0.001822]
[1728896599723,0.68099186,64518.0,64517.0,0.002822]
[1728896605856,0.85653258,64518.0,64517.0,0.002822]
[1728896606123,0.68099186,64518.0,64517.0,0.002822]
[1728896607018,0.172038,64500.0,64499.0,0.23255634]
[1728896607249,0.63180273,64500.0,64499.0,0.23255634]
[1728896607469,0.162057,64492.0,64491.0,0.23316405]
[1728896607696,0.53182173,64492.0,64491.0,0.000822]
[1728896609741,0.53182173,64492.0,64491.0,0.002822]
[1728896610852,0.53582173,64492.0,64491.0,0.002822]
[1728896613509,0.61732173,64492.0,64491.0,0.002822]
[1728896616341,0.88491397,64492.0,64491.0,0.002822]
[1728896616561,0.8364353,64492.0,64491.0,0.002822]
[1728896617231,0.9324353,64492.0,64491.0,0.002822]
[1728896617477,1.0853353,64492.0,64491.0,0.002822]
[1728896617725,1.0813353,64492.0,64491.0,0.002822]
[1728896618179,1.0813353,64492.0,64491.0,0.000822]
[1728896618180,1.0953353,64492.0,64491.0,0.000822]
[1728896618394,1.0813353,64492.0,64491.0,0.000822]
[1728896618616,1.0843353,64492.0,64491.0,0.000822]
[1728896618834,1.0983353,64492.0,64491.0,0.000822]
[1728896619058,0.16507,64487.0,64486.0,0.000822]
[1728896619319,1.02207545,64487.0,64486.0,0.000822]
[1728896619542,1.02207545,64487.0,64474.0,1e-06]
[1728896619543,0.167098,64475.0,64474.0,1e-06]
[1728896619762,0.60206273,64475.0,64474.0,1e-06]
[1728896620002,0.60706273,64475.0,64474.0,1e-06]
[1728896620455,0.65063558,64475.0,64474.0,1e-06]
[1728896621656,0.65863558,64475.0,64474.0,1e-06]
[1728896621894,0.61706273,64475.0,64474.0,1e-06]
[1728896622600,0.61506273,64475.0,64474.0,1e-06]
[1728896623838,0.60706273,64475.0,64474.0,1e-06]
[1728896624292,0.61906273,64475.0,64474.0,1e-06]
[1728896624517,0.62506273,64475.0,64474.0,0.001001]
[1728896624746,0.66994087,64475.0,64474.0,0.001001]
[1728896624976,0.66394087,64475.0,64474.0,1e-06]
[1728896625267,0.66994087,64475.0,64474.0,0.001001]
[1728896627342,0.34932201,64475.0,64474.0,0.001001]
[1728896627579,0.34432201,64475.0,64474.0,0.001001]
[1728896627783,0.34932201,64475.0,64474.0,0.001001]
[1728896628455,0.34432201,64475.0,64474.0,0.001001]
[1728896628695,0.37232201,64475.0,64474.0,0.001001]
[1728896628976,0.37432201,64475.0,64474.0,0.001001]
[1728896630070,0.37232201,64475.0,64474.0,0.001001]
[1728896630258,0.37432201,64475.0,64474.0,0.001001]
[1728896630538,0.37232201,64475.0,64474.0,0.001001]
[1728896630720,0.36732201,64475.0,64474.0,0.001001]
[1728896631477,0.35432201,64475.0,64474.0,1e-06]
[1728896631718,0.35432201,64475.0,64474.0,0.001001]
[1728896631719,0.34232201,64475.0,64474.0,0.001001]
[1728896632187,0.17122401,64475.0,64474.0,1e-06]
[1728896632673,0.17103701,64475.0,64474.0,1e-06]
[1728896632924,0.17703701,64475.0,64474.0,1e-06]
[1728896633165,0.010813,64475.0,64474.0,1e-06]
[1728896633882,0.010813,64475.0,64474.0,0.155102]
[1728896634117,0.004813,64475.0,64474.0,0.214401]
[1728896634333,0.006813,64475.0,64474.0,0.214401]
[1728896634555,0.013813,64475.0,64474.0,0.214401]
[1728896634780,0.004813,64475.0,64474.0,0.214401]
[1728896635004,0.010813,64475.0,64474.0,0.214401]
[1728896635249,0.011813,64475.0,64474.0,0.214401]
[1728896635487,0.007,64475.0,64474.0,0.369502]
[1728896635695,0.009,64475.0,64474.0,0.38109385]
[1728896635912,0.009,64475.0,64474.0,0.39360471]
[1728896637106,0.004813,64484.0,64483.0,0.366979]
[1728896637333,0.004813,64486.0,64485.0,0.289574]
[1728896637558,0.004813,64487.0,64485.0,0.32163257]
[1728896637865,0.004813,64495.0,64492.0,0.1345]
[1728896638057,0.23255634,64491.0,64487.0,0.14628758]
[1728896638285,0.004813,64495.0,64494.0,0.155053]
[1728896638505,0.004813,64495.0,64494.0,0.37624669]
[1728896638724,0.004813,64495.0,64494.0,0.37490955]
[1728896639165,0.23736934,64498.0,64495.0,0.15505]
[1728896639386,0.23736934,64498.0,64495.0,0.33059072]
[1728896639646,0.004813,64497.0,64496.0,0.01022811]
[1728896640132,0.004813,64497.0,64495.0,0.17554072]
[1728896640361,0.004813,64497.0,64496.0,0.01022811]
[1728896640846,0.004813,64497.0,64494.0,0.2096]
[1728896641080,0.005813,64497.0,64494.0,0.2096]
[1728896641319,0.001,64495.0,64494.0,0.2156]
[1728896641803,0.004813,64497.0,64494.0,0.2096]
[1728896642049,0.005813,64497.0,64496.0,0.007]
[1728896642527,0.004813,64497.0,64494.0,0.38514072]
[1728896642787,0.001,64495.0,64494.0,0.39414072]
[1728896643508,0.001,64495.0,64494.0,0.54919372]
[1728896643755,0.002,64495.0,64494.0,0.54919372]
[1728896644402,0.001,64495.0,64494.0,0.54019372]
[1728896644653,0.005813,64495.0,64494.0,0.54019372]
[1728896645096,0.001,64495.0,64494.0,0.54019372]
[1728896645318,0.005813,64495.0,64494.0,0.54019372]
[1728896645553,0.006813,64495.0,64494.0,0.55019372]
[1728896646195,0.002,64495.0,64494.0,0.55019372]
[1728896646412,0.006813,64495.0,64494.0,0.55019372]
[1728896646632,0.007457,64495.0,64494.0,0.55019372]
[1728896646851,0.008457,64495.0,64494.0,0.55019372]
[1728896647045,0.007457,64495.0,64494.0,0.55019372]
[1728896647298,0.006457,64495.0,64494.0,0.54019372]
[1728896647521,0.008457,64495.0,64494.0,0.55019372]
[1728896647730,0.008457,64495.0,64494.0,0.40538118]
[1728896648212,0.006457,64495.0,64494.0,0.39538118]
[1728896648447,0.002644,64495.0,64494.0,0.65543418]
[1728896648918,0.001644,64495.0,64494.0,0.65043418]
[1728896649355,0.002644,64495.0,64494.0,0.65643418]
[1728896649573,0.002644,64495.0,64494.0,0.86390693]
[1728896650223,0.002644,64495.0,64494.0,1.32906693]
[1728896650410,0.002644,64495.0,64494.0,1.29436806]
[1728896650652,0.002644,64495.0,64494.0,1.3406168]
[1728896650874,0.002644,64495.0,64494.0,1.29436806]
[1728896651312,0.002644,64495.0,64494.0,1.3406168]
[1728896651529,0.002644,64495.0,64494.0,1.29436806]
[1728896655128,0.001644,64495.0,64494.0,1.28836806]
[1728896655607,0.002644,64495.0,64494.0,1.29736806]
[1728896656610,0.002644,64495.0,64494.0,1.297372]
[1728896656843,0.003644,64495.0,64494.0,1.297372]
[1728896664503,0.003644,64495.0,64494.0,1.29740867]
[1728896670475,0.003644,64495.0,64494.0,1.34355518]
[1728896671415,0.003644,64495.0,64494.0,1.29740867]
[1728896672371,0.003644,64495.0,64494.0,1.29744523]
[1728896674376,0.003644,64495.0,64494.0,1.38973825]
[1728896674593,0.003644,64495.0,64494.0,1.38998762]
[1728896675085,0.003644,64495.0,64494.0,1.0048469]
[1728896675328,0.003644,64495.0,64494.0,0.91230451]
[1728896675548,0.003644,64495.0,64494.0,0.84362289]
[1728896675787,0.003644,64495.0,64494.0,0.7510805]
[1728896676302,0.003644,64495.0,64494.0,0.79738285]
[1728896676529,0.003644,64495.0,64494.0,0.75108689]
[1728896677008,0.002644,64495.0,64494.0,0.75108689]
[1728896677468,0.002644,64495.0,64494.0,0.82053083]
[1728896677469,0.003644,64495.0,64494.0,0.82053083]
[1728896677685,0.001644,64495.0,64494.0,0.81153083]
[1728896677924,0.001644,64495.0,64494.0,0.81953083]
[1728896678150,0.002644,64495.0,64494.0,0.81953083]
[1728896678389,0.002644,64495.0,64494.0,0.74208689]
[1728896678847,0.002644,64495.0,64494.0,0.75408689]
[1728896679732,0.002644,64495.0,64494.0,0.65408689]
[1728896679961,0.002644,64495.0,64494.0,0.74688364]
[1728896680205,0.007457,64495.0,64494.0,0.49903389]
[1728896680425,0.007457,64495.0,64494.0,0.59183064]
[1728896680658,0.007457,64495.0,64494.0,0.49903389]
[1728896681118,0.162507,64495.0,64494.0,0.49903389]
[1728896681379,0.007457,64495.0,64494.0,0.59183064]
[1728896682536,0.007457,64495.0,64494.0,0.49903389]
[1728896684207,0.007457,64495.0,64494.0,0.49902713]
[1728896684876,0.007457,64495.0,64494.0,0.65408013]
[1728896685333,0.007457,64495.0,64494.0,0.74707854]
[1728896685772,0.007457,64495.0,64494.0,0.59202554]
[1728896685996,0.007457,64495.0,64494.0,0.59202182]
[1728896686447,0.007457,64495.0,64494.0,0.49902713]
[1728896686910,0.007457,64495.0,64494.0,0.49902398]
[1728896688042,0.162507,64495.0,64494.0,0.49902398]
[1728896688261,0.162507,64495.0,64494.0,0.49902331]
[1728896688911,0.007457,64495.0,64494.0,0.49902331]
[1728896692030,0.007457,64495.0,64494.0,0.49902207]
[1728896694502,0.007457,64495.0,64494.0,0.56875109]
[1728896695736,0.007457,64495.0,64494.0,0.56874921]
[1728896696225,0.007457,64495.0,64494.0,0.5571276]
[1728896696455,0.007457,64495.0,64494.0,0.56875039]
[1728896697159,0.002644,64495.0,64494.0,0.65407625]
[1728896697603,0.002644,64495.0,64494.0,0.77028816]
[1728896697833,0.002644,64495.0,64494.0,0.65407625]
[1728896699846,0.002644,64495.0,64494.0,0.65407625]
[1728896700282,0.002644,64495.0,64494.0,0.64207625]
[1728896700504,0.001644,64495.0,64494.0,0.64207625]
[1728896700732,0.017644,64495.0,64494.0,0.64407625]
[1728896703066,0.017644,64495.0,64494.0,1.11930026]
[1728896703518,0.015644,64495.0,64494.0,1.25775455]
[1728896703963,0.001644,64495.0,64494.0,1.25775455]
[1728896704437,0.015644,64495.0,64494.0,1.25775455]
[1728896704657,0.015644,64495.0,64494.0,1.25875455]
[1728896705082,0.001644,64495.0,64494.0,1.25675455]
[1728896705548,0.015644,64495.0,64494.0,1.25775455]
[1728896706712,0.015644,64495.0,64494.0,1.25774842]
[1728896707384,0.001644,64495.0,64494.0,1.25674842]
[1728896707603,0.015644,64495.0,64494.0,1.25874842]
[1728896708052,0.001646,64497.0,64496.0,0.255048]
[1728896708321,0.001646,64497.0,64496.0,1.40880317]
[1728896708541,0.001646,64497.0,64496.0,2.10880317]
[1728896709455,0.001646,64497.0,64496.0,2.10980317]
[1728896710590,0.015646,64497.0,64496.0,2.10978725]
[1728896710814,0.23255634,64507.0,64506.0,0.155024]
[1728896711029,0.23255634,64507.0,64506.0,1.12958305]
[1728896711457,0.23255634,64514.0,64513.0,0.155007]
[1728896711667,0.23255634,64514.0,64513.0,0.37777947]
[1728896712156,0.009813,64515.0,64514.0,0.155005]
[1728896712371,0.009813,64515.0,64514.0,0.16660574]
[1728896714321,0.009813,64515.0,64514.0,0.17160574]
[1728896714537,0.009813,64515.0,64514.0,0.24418966]
[1728896715452,0.004813,64515.0,64514.0,0.24418966]
[1728896715670,0.009813,64515.0,64514.0,0.24418966]
[1728896716600,0.004813,64515.0,64514.0,0.17459786]
[1728896716832,0.081,64521.0,64514.0,0.17459786]
[1728896716833,0.081,64521.0,64516.0,0.155]
[1728896717081,0.23255634,64521.0,64516.0,1.01114902]
[1728896717348,0.004813,64528.0,64516.0,1.22324902]
[1728896717589,0.23736934,64529.0,64516.0,1.22324902]
[1728896718317,0.002644,64517.0,64516.0,1.23123914]
[1728896718550,0.002644,64517.0,64516.0,1.23482253]
[1728896718551,0.001644,64517.0,64516.0,1.23482253]
[1728896718782,0.015644,64517.0,64516.0,1.24346367]
[1728896719009,0.015644,64517.0,64516.0,1.24446367]
[1728896719258,0.23736934,64529.0,64517.0,0.254997]
[1728896719492,0.23736934,64529.0,64517.0,1.01112655]
[1728896719966,0.23736934,64529.0,64517.0,1.06825261]
[1728896720640,0.23255634,64529.0,64517.0,1.06825261]
[1728896720875,0.013644,64518.0,64517.0,1.07025261]
[1728896721161,0.00255825,64518.0,64517.0,1.07025261]
[1728896721609,0.23255634,64529.0,64517.0,1.07025261]
[1728896721610,0.23255634,64529.0,64528.0,0.154971]
[1728896721830,0.23255634,64529.0,64528.0,0.33042921]
[1728896722280,0.005,64530.0,64528.0,0.17545821]
[1728896722498,0.005,64530.0,64529.0,0.154969]
[1728896722932,0.005,64530.0,64529.0,0.464906]
[1728896724101,0.006457,64531.0,64529.0,0.464906]
[1728896724102,0.006457,64531.0,64530.0,0.154966]
[1728896724336,0.006457,64531.0,64530.0,0.619866]
[1728896725458,0.006457,64531.0,64530.0,0.627866]
[1728896728159,0.001644,64531.0,64530.0,0.634866]
[1728896728387,0.001644,64531.0,64530.0,0.64643704]
[1728896728605,0.001644,64531.0,64530.0,0.66191731]
[1728896730709,0.001644,64531.0,64530.0,0.65391731]
[1728896730963,0.001644,64531.0,64530.0,0.65591731]
[1728896731206,0.001644,64531.0,64530.0,0.66391731]
[1728896731455,0.001644,64531.0,64530.0,0.64691731]
[1728896731694,0.001644,64531.0,64530.0,0.66391731]
[1728896731950,0.001644,64531.0,64530.0,0.83306656]
[1728896732202,0.001644,64531.0,64530.0,0.97927318]
[1728896732428,0.001644,64531.0,64530.0,0.93306656]
[1728896732619,0.001644,64531.0,64530.0,1.0024904]
[1728896732885,0.001644,64531.0,64530.0,1.02563168]
[1728896733107,0.001644,64531.0,64530.0,1.04877296]
[1728896733327,0.001644,64531.0,64530.0,0.93306656]
[1728896733796,0.001644,64531.0,64530.0,0.91607461]
[1728896734016,0.001644,64531.0,64530.0,1.04578101]
[1728896734237,0.001644,64531.0,64530.0,1.06726344]
[1728896734459,0.001644,64531.0,64530.0,0.93755704]
[1728896734681,0.001644,64531.0,64530.0,1.05304054]
[1728896734902,0.001644,64531.0,64530.0,1.06704054]
[1728896735599,0.001644,64531.0,64530.0,0.95155704]
[1728896737651,0.001644,64531.0,64530.0,0.93997795]
[1728896737880,0.001644,64531.0,64530.0,0.95156235]
[1728896739557,0.001644,64531.0,64530.0,0.94407992]
[1728896739794,0.001644,64531.0,64530.0,1.05959218]
[1728896740029,0.001644,64531.0,64530.0,1.15466783]
[1728896740330,0.001644,64531.0,64530.0,1.06225658]
[1728896740569,0.001644,64531.0,64530.0,1.16376884]
[1728896741042,0.001644,64531.0,64530.0,1.15876884]
[1728896741281,0.001644,64531.0,64530.0,1.17276884]
[1728896741533,0.001644,64531.0,64530.0,1.03425658]
[1728896741757,0.001644,64531.0,64530.0,1.04626416]
[1728896741987,0.001644,64531.0,64530.0,1.06026416]
[1728896742235,0.001644,64531.0,64530.0,1.0602641]
[1728896743912,0.001644,64531.0,64530.0,1.0482641]
[1728896744144,0.001644,64531.0,64530.0,1.0342641]
[1728896744375,0.001644,64531.0,64530.0,1.0592641]
[1728896744611,0.001644,64531.0,64530.0,1.0452641]
[1728896744837,0.001644,64531.0,64530.0,1.0342641]
[1728896745048,0.001644,64531.0,64530.0,1.0482641]
[1728896745280,0.001644,64531.0,64530.0,1.0342641]
[1728896745709,0.001644,64531.0,64530.0,1.0482641]
[1728896746353,0.001644,64531.0,64530.0,1.0612641]
[1728896746791,0.001644,64531.0,64530.0,1.0482641]
[1728896747207,0.001644,64531.0,64530.0,1.11058178]
[1728896748293,0.001644,64531.0,64530.0,1.2493792]
[1728896749415,0.001644,64531.0,64530.0,1.24948519]
[1728896749829,0.001644,64531.0,64530.0,1.13133352]
[1728896750255,0.001644,64531.0,64530.0,1.11971661]
[1728896750500,0.001644,64531.0,64530.0,1.13133487]
[1728896751786,0.006457,64531.0,64530.0,0.97011086]
[1728896752011,0.006457,64531.0,64530.0,0.56076118]
[1728896752234,0.006457,64531.0,64530.0,0.71572718]
[1728896752441,0.006457,64531.0,64530.0,0.6674095]
[1728896752654,0.006457,64531.0,64530.0,0.6534095]
[1728896752858,0.006457,64531.0,64530.0,0.6394095]
[1728896753087,0.006457,64531.0,64530.0,0.6504095]
[1728896753767,0.006457,64531.0,64530.0,0.6644095]
[1728896754203,0.006457,64531.0,64530.0,0.66441242]
[1728896756803,0.011457,64531.0,64530.0,0.50944642]
[1728896757029,0.145957,64531.0,64530.0,0.66441242]
[1728896757237,0.143957,64531.0,64530.0,0.62543764]
[1728896757455,0.143957,64531.0,64530.0,0.66441242]
[1728896757670,0.143957,64531.0,64530.0,0.60224351]
[1728896757896,0.143957,64531.0,64530.0,0.50944642]
[1728896758144,0.143957,64531.0,64530.0,0.60224502]
[1728896758369,0.143957,64531.0,64530.0,0.49844642]
[1728896758593,0.143957,64531.0,64530.0,0.48444642]
[1728896758804,0.143957,64531.0,64530.0,0.48844642]
[1728896759031,0.143957,64531.0,64530.0,0.50244642]
[1728896759254,0.143957,64531.0,64530.0,0.48444642]
[1728896759551,0.143957,64531.0,64530.0,0.50344642]
[1728896760233,0.143957,64531.0,64530.0,0.60543764]
[1728896760693,0.143957,64531.0,64530.0,0.61452642]
[1728896761183,0.143957,64531.0,64530.0,0.61452318]
[1728896761409,0.143957,64531.0,64530.0,0.49844318]
[1728896762101,0.143957,64531.0,64530.0,0.65540918]
[1728896762330,0.011457,64531.0,64530.0,0.75958584]
[1728896762554,0.011457,64531.0,64530.0,0.77158584]
[1728896762791,0.006457,64531.0,64530.0,0.77658584]
[1728896763287,0.001644,64531.0,64530.0,0.77658584]
[1728896764209,0.001644,64531.0,64530.0,0.82497941]
[1728896764422,0.001644,64531.0,64530.0,0.81336147]
[1728896764659,0.001644,64531.0,64530.0,0.82497586]
[1728896764879,0.001644,64531.0,64530.0,0.81336147]
[1728896765546,0.001644,64531.0,64530.0,1.18026473]
[1728896766931,0.001644,64531.0,64530.0,0.97458548]
[1728896767871,0.001644,64531.0,64530.0,1.2145446]
[1728896768090,0.001644,64531.0,64530.0,0.97458548]
[1728896768317,0.001644,64531.0,64530.0,1.2150756]
[1728896768554,0.001644,64531.0,64530.0,0.97511648]
[1728896768794,0.001644,64531.0,64530.0,1.2150756]
[1728896769005,0.001644,64531.0,64530.0,0.97511648]
[1728896769209,0.001644,64531.0,64530.0,1.2150756]
[1728896769423,0.001644,64531.0,64530.0,0.97511648]
[1728896769658,0.001644,64531.0,64530.0,1.2150756]
[1728896769879,0.001644,64531.0,64530.0,0.97511648]
[1728896770092,0.001644,64531.0,64530.0,1.2150756]
[1728896770302,0.006644,64531.0,64530.0,0.97511648]
[1728896770508,0.001644,64531.0,64530.0,1.2150756]
[1728896770713,0.001644,64531.0,64530.0,0.97511648]
[1728896770939,0.001644,64531.0,64530.0,1.2150756]
[1728896771191,0.001644,64531.0,64530.0,0.97511648]
[1728896771420,0.006644,64531.0,64530.0,1.2150756]
[1728896771626,0.006644,64531.0,64530.0,0.97511648]
[1728896771844,0.001644,64531.0,64530.0,1.2150756]
[1728896772060,0.001644,64531.0,64530.0,0.97511648]
[1728896772312,0.006644,64531.0,64530.0,1.2150756]
[1728896772547,0.006644,64531.0,64530.0,0.97511648]
[1728896774059,0.001644,64531.0,64530.0,1.31929314]
[1728896774277,0.001644,64531.0,64530.0,1.41929314]
[1728896774489,0.001644,64531.0,64530.0,1.65943428]
[1728896775360,0.001644,64531.0,64530.0,1.64543428]
[1728896775596,0.001644,64531.0,64530.0,1.64043428]
[1728896775803,0.001644,64531.0,64530.0,1.65943428]
[1728896776221,0.001644,64531.0,64530.0,1.65443428]
[1728896776657,0.001644,64531.0,64530.0,1.66343428]
[1728896777284,0.001644,64531.0,64530.0,1.46345762]
[1728896777518,0.001644,64531.0,64530.0,1.31925762]
[1728896778651,0.001644,64531.0,64530.0,1.20108096]
[1728896778883,0.001644,64531.0,64530.0,1.31925762]
[1728896779305,0.011457,64531.0,64530.0,0.54474981]
[1728896779521,0.011457,64531.0,64530.0,0.49635624]
[1728896779522,0.093057,64531.0,64530.0,0.49635624]
[1728896779731,0.093057,64531.0,64530.0,0.63576937]
[1728896779946,0.093057,64531.0,64530.0,0.61276937]
[1728896780188,0.093057,64531.0,64530.0,0.47335624]
[1728896780417,0.093057,64531.0,64530.0,0.77673834]
[1728896781293,0.093057,64531.0,64530.0,0.65132224]
[1728896781728,0.093057,64531.0,64530.0,0.76773834]
[1728896781944,0.093057,64531.0,64530.0,0.64232224]
[1728896782153,0.093057,64531.0,64530.0,0.77573834]
[1728896782600,0.093057,64531.0,64530.0,0.78173834]
[1728896782811,0.093057,64531.0,64530.0,0.62832224]
[1728896783045,0.011457,64531.0,64530.0,0.77473834]
[1728896783245,0.011457,64531.0,64530.0,0.63532224]
[1728896783459,0.011457,64531.0,64530.0,0.64232224]
[1728896784332,0.011457,64531.0,64530.0,0.80354625]
[1728896784333,0.006644,64531.0,64530.0,0.80354625]
[1728896785030,0.006644,64531.0,64530.0,0.78954625]
[1728896785248,0.006644,64531.0,64530.0,0.79554625]
[1728896785461,0.006644,64531.0,64530.0,0.80954625]
[1728896785688,0.006644,64531.0,64530.0,0.78954625]
[1728896786117,0.006644,64531.0,64530.0,0.80354625]
[1728896786799,0.006644,64531.0,64530.0,0.81254625]
[1728896787443,0.086844,64531.0,64530.0,0.81254625]
[1728896787911,0.091657,64531.0,64530.0,0.79073842]
[1728896788359,0.091657,64531.0,64530.0,0.49635624]
[1728896788783,0.093657,64531.0,64530.0,0.49635624]
[1728896789226,0.091657,64531.0,64530.0,0.47335624]
[1728896789444,0.091657,64531.0,64530.0,0.62832224]
[1728896789651,0.091657,64531.0,64530.0,0.64432224]
[1728896790076,0.091657,64531.0,64530.0,0.64232224]
[1728896790290,0.091657,64531.0,64530.0,0.48735624]
[1728896790519,0.091657,64531.0,64530.0,0.64232224]
[1728896791409,0.091657,64531.0,64530.0,0.64432224]
[1728896792574,0.246621,64531.0,64530.0,0.48935624]
[1728896792813,0.248621,64531.0,64530.0,0.60553301]
[1728896793067,0.248621,64531.0,64530.0,0.48935624]
[1728896793522,0.248621,64531.0,64530.0,0.4917837]
[1728896793523,0.228621,64531.0,64530.0,0.4917837]
[1728896795542,0.228621,64531.0,64530.0,0.58469666]
[1728896796917,0.228621,64531.0,64530.0,0.57069666]
[1728896797145,0.230265,64531.0,64530.0,0.58169666]
[1728896797353,0.230265,64531.0,64530.0,0.57969666]
[1728896798467,0.231265,64531.0,64530.0,0.56869666]
[1728896798695,0.231265,64531.0,64530.0,0.5796743]
[1728896798696,0.076301,64531.0,64530.0,0.5796743]
[1728896798925,0.075301,64531.0,64530.0,0.4867837]
[1728896799173,0.073301,64531.0,64530.0,0.4867837]
[1728896799399,0.073301,64531.0,64530.0,0.60294827]
[1728896799400,0.074301,64531.0,64530.0,0.60294827]
[1728896800366,0.074301,64531.0,64530.0,0.4867837]
[1728896803472,0.074301,64531.0,64530.0,0.60294827]
[1728896805130,0.007457,64531.0,64530.0,0.60294827]
[1728896808705,0.007457,64531.0,64530.0,0.60285587]
[1728896809454,0.164421,64531.0,64530.0,0.60285587]
[1728896810125,0.009457,64531.0,64530.0,0.60285587]
[1728896810368,0.36754102,64531.0,64530.0,0.57964053]
[1728896811082,0.50414102,64531.0,64530.0,0.4867837]
[1728896814117,0.383921,64531.0,64530.0,0.4867837]
[1728896814362,0.224144,64531.0,64530.0,0.4867837]
[1728896814623,0.007457,64531.0,64530.0,0.4867837]
[1728896816004,0.007457,64531.0,64530.0,0.6417497]
[1728896816685,0.007457,64531.0,64530.0,0.7810363]
[1728896819233,0.007457,64531.0,64530.0,0.7700363]
[1728896819442,0.007457,64531.0,64530.0,0.7810363]
[1728896819689,0.007457,64531.0,64530.0,0.7700363]
[1728896819909,0.007457,64531.0,64530.0,0.7708583]
[1728896820138,0.007457,64531.0,64530.0,0.9276583]
[1728896820367,0.006457,64531.0,64530.0,0.9276583]
[1728896820594,0.007457,64531.0,64530.0,0.9276583]
[1728896821038,0.006457,64531.0,64530.0,0.9276583]
[1728896821258,0.006457,64531.0,64530.0,0.7883717]
[1728896821479,0.006457,64531.0,64530.0,0.7943717]
[1728896822388,0.006457,64531.0,64530.0,0.6515717]
[1728896823814,0.006457,64531.0,64530.0,0.4966057]
[1728896825099,0.006457,64531.0,64530.0,0.50822643]
[1728896825561,0.008457,64531.0,64530.0,0.50822643]
[1728896825782,0.006457,64531.0,64530.0,0.50822643]
[1728896826265,0.008457,64531.0,64530.0,0.50822643]
[1728896829385,0.008457,64531.0,64530.0,0.4966057]
[1728896829594,0.008457,64531.0,64530.0,0.50822724]
[1728896833773,0.008457,64531.0,64530.0,0.50822703]
[1728896834836,0.006457,64531.0,64530.0,0.50822703]
[1728896837550,0.008457,64531.0,64530.0,0.50822703]
[1728896837780,0.008457,64531.0,64530.0,0.50822697]
[1728896839668,0.28664418,64531.0,64530.0,0.50822697]
[1728896839929,0.168421,64531.0,64530.0,0.50822697]
[1728896840110,0.168421,64531.0,64530.0,0.4966057]
[1728896840386,0.168421,64531.0,64530.0,0.61285544]
[1728896840632,0.32964501,64531.0,64530.0,0.61285544]
[1728896840863,0.83941656,64531.0,64530.0,0.3726337]
[1728896841080,0.72119338,64531.0,64530.0,0.3416407]
[1728896841369,0.237406,64519.0,64518.0,0.000822]
[1728896841615,0.66307637,64519.0,64518.0,0.000822]
[1728896842053,0.54724,64511.0,64510.0,0.06972829]
[1728896842271,0.54724,64511.0,64508.0,0.06972829]
[1728896842272,0.006813,64509.0,64508.0,0.06972829]
[1728896842490,0.161837,64506.0,64505.0,0.09301536]
[1728896842714,0.161837,64506.0,64496.0,0.01514797]
[1728896842715,0.006813,64504.0,64501.0,0.09292673]
[1728896842935,0.006813,64504.0,64501.0,0.06969917]
[1728896842936,0.004813,64504.0,64501.0,0.06969917]
[1728896843167,0.004813,64499.0,64497.0,0.09374873]
[1728896843443,0.157027,64505.0,64497.0,0.09374873]
[1728896843444,0.004813,64498.0,64497.0,0.09374873]
[1728896843647,0.004813,64498.0,64497.0,0.000822]
[1728896844545,0.004813,64498.0,64497.0,0.07047849]
[1728896844768,0.004813,64498.0,64497.0,0.005822]
[1728896845213,0.005813,64498.0,64497.0,0.018822]
[1728896845886,0.165856,64498.0,64497.0,0.018822]
[1728896846108,0.32908001,64498.0,64497.0,0.013822]
[1728896846355,0.33008001,64498.0,64497.0,0.019822]
[1728896846796,0.32908001,64498.0,64497.0,0.013822]
[1728896847231,0.33308001,64498.0,64497.0,0.013822]
[1728896847686,0.33208001,64498.0,64497.0,0.000822]
[1728896847905,0.32908001,64498.0,64497.0,0.000822]
[1728896848177,0.48458001,64498.0,64497.0,0.000822]
[1728896848627,0.48558001,64498.0,64497.0,0.000822]
[1728896849289,0.49258001,64498.0,64497.0,0.001822]
[1728896849541,0.49658001,64498.0,64497.0,0.001822]
[1728896849768,0.48958001,64498.0,64497.0,0.000822]
[1728896849986,0.49658001,64498.0,64497.0,0.001822]
[1728896850455,0.48958001,64498.0,64497.0,0.000822]
[1728896850904,0.49458001,64498.0,64497.0,0.000822]